lending/lending_fUSD_20260104
["ID","MTS","AMOUNT","RATE_DAILY","PERIOD"]
[400396947,1767510413135,1691.98,0.00043636,120]
[400396948,1767510413207,1255.31,0.00043636,120]
[400396949,1767510413274,2294.51735754,0.00043636,120]
[400396950,1767510413358,1691.98,0.00043636,120]
[400396951,1767510413443,1255.31,0.00043636,120]
[400396952,1767510413649,1692.09920107,0.00043636,120]
[400396953,1767510413727,1255.31,0.00043636,120]
[400396954,1767510413941,1255.31,0.00043636,120]
[400396955,1767510414178,1255.31,0.00043636,120]
[400396956,1767510414416,1255.31,0.00043636,120]
[400396957,1767510414711,1255.31,0.00043636,120]
[400396958,1767510414953,1255.31,0.00043636,120]
[400396959,1767510415163,1255.31,0.00043636,120]
[400396960,1767510415401,1255.31,0.00043636,120]
[400396961,1767510415477,500.0,0.00043636,120]
[400396962,1767510415635,1255.31,0.00043636,120]
[400396963,1767510415713,259.33503351,0.00043636,120]
[400396964,1767510415854,1255.31,0.00043636,120]
[400396965,1767510416096,1255.31,0.00043636,120]
[400396966,1767510416328,307.51453983,0.00043636,120]
[400396967,1767510416409,1255.31,0.00043636,120]
[400396968,1767510416559,1255.31,0.00043636,120]
[400396969,1767510416791,1255.47092582,0.00043636,120]
[400396970,1767510416860,500.0,0.00043636,120]
[400396971,1767510417353,500.0,0.00043636,120]
[400396972,1767510417429,500.0,0.00043636,120]
[400396973,1767510417596,500.0,0.00043636,120]
[400396974,1767510417667,500.0,0.00043636,120]
[400396975,1767510417832,500.0,0.00043636,120]
[400396976,1767510417916,480.18217008,0.00043636,120]
[400396977,1767510418067,500.0,0.00043636,120]
[400396978,1767510418311,500.0,0.00043636,120]
[400396979,1767510418553,500.0,0.00043636,120]
[400396980,1767510418778,500.0,0.00043636,120]
[400396981,1767510419019,500.0,0.00043636,120]
[400396982,1767510419091,221.49055191,0.00043636,120]
[400396983,1767510419248,500.0,0.00043636,120]
[400396984,1767510419512,500.0,0.00043636,120]
[400396985,1767510420085,500.0,0.00043636,120]
[400396986,1767510420317,500.0,0.00043636,120]
[400396987,1767510420559,500.0,0.00043636,120]
[400396988,1767510420676,464.08283239,0.00043636,120]
[400396989,1767510420783,500.0,0.00043636,120]
[400396990,1767510421017,500.0,0.00043636,120]
[400396991,1767510421108,520.9147259,0.00043636,120]
[400396992,1767510421237,500.0,0.00043636,120]
[400396993,1767510421498,500.0,0.00043636,120]
[400396994,1767510421722,551.31911329,0.00043636,120]
[400396995,1767510422505,295.42080052,0.00043636,120]
[400396996,1767510422590,350.49614546,0.00043636,120]
[400396997,1767510422664,500.0,0.00043636,120]
[400396998,1767510422734,218.81525507,0.00043636,120]
[400397001,1767510422925,599.48381753,0.00043636,120]
[400397002,1767510424333,522.7856852,0.00043636,120]
[400397003,1767510425139,-169.87,0.00020908,2]
[400397004,1767510425160,-193.0,0.0002143,2]
[400397005,1767510425181,-195.0,0.0002143,2]
[400397006,1767510425201,-250.0,0.00021953,2]
[400397007,1767510425222,-250.0,0.00022998,2]
[400397008,1767510425243,-300.0,0.00022998,2]
[400397009,1767510425264,-250.0,0.00022998,2]
[400397010,1767510425285,-163.84442461,0.00022998,2]
[400397011,1767510425306,-193.0,0.00022998,2]
[400397012,1767510425327,-195.0,0.00022998,2]
[400397013,1767510425347,-193.0,0.00023874,2]
[400397014,1767510425369,-193.0,0.00023874,2]
[400397015,1767510425392,-4.21778954,0.00023874,2]
[400397016,1767510425475,391.18690696,0.00043636,120]
[400397017,1767510425680,500.0,0.00043636,120]
[400397018,1767510425932,326.650699,0.00043636,120]
[400397019,1767510426124,500.0,0.00043636,120]
[400397020,1767510426226,615.82389738,0.00043636,120]
[400397021,1767510426296,500.0,0.00043636,120]
[400397022,1767510426371,320.00015858,0.00043636,120]
[400397023,1767510426475,500.0,0.00043636,120]
[400397024,1767510426719,229.98323614,0.00043636,120]
[400397025,1767510427130,175.18638857,0.00043636,120]
[400397026,1767510427295,305.36196554,0.00043636,120]
[400397027,1767510428016,500.0,0.00043636,120]
[400397028,1767510428252,500.0,0.00043636,120]
[400397029,1767510428488,590.90467759,0.00043636,120]
[400397030,1767510430493,500.0,0.00043636,120]
[400397031,1767510430564,540.70263512,0.00043636,120]
[400397032,1767510430744,500.0,0.00043636,120]
[400397033,1767510430985,500.0,0.00043636,120]
[400397034,1767510431222,498.43216147,0.00043636,120]
[400397035,1767510432363,152.85632433,0.00043636,120]
[400397036,1767510433030,500.0,0.00043636,120]
[400397037,1767510433098,158.78492488,0.00043636,120]
[400397038,1767510433164,500.0,0.00043636,120]
[400397039,1767510433250,500.0,0.00043636,120]
[400397040,1767510433493,500.0,0.00043636,120]
[400397041,1767510433731,500.0,0.00043636,120]
[400397042,1767510433971,500.0,0.00043636,120]
[400397043,1767510434201,500.0,0.00043636,120]
[400397044,1767510434270,500.0,0.00043636,120]
[400397045,1767510434451,500.0,0.00043636,120]
[400397046,1767510434526,500.0,0.00043636,120]
[400397047,1767510434690,219.96510395,0.00043636,120]
[400397048,1767510434769,500.0,0.00043636,120]
[400397049,1767510434849,500.0,0.00043636,120]
[400397050,1767510434954,500.0,0.00043636,120]
[400397051,1767510435230,500.0,0.00043636,120]
[400397052,1767510435310,500.0,0.00043636,120]
[400397053,1767510435397,500.0,0.00043636,120]
[400397054,1767510435506,500.0,0.00043636,120]
[400397055,1767510435585,500.0,0.00043636,120]
[400397056,1767510435755,500.0,0.00043636,120]
[400397057,1767510435832,500.0,0.00043636,120]
[400397058,1767510435978,183.34739525,0.00043636,120]
[400397059,1767510436058,500.0,0.00043636,120]
[400397060,1767510436136,353.7588171,0.00043636,120]
[400397061,1767510436242,500.0,0.00043636,120]
[400397062,1767510436525,500.0,0.00043636,120]
[400397063,1767510436767,500.0,0.00043636,120]
[400397064,1767510437012,500.0,0.00043636,120]
[400397065,1767510437249,500.0,0.00043636,120]
[400397066,1767510437564,618.3389962,0.00043636,120]
[400397067,1767510438470,602.34656637,0.00043636,120]
[400397068,1767510439203,575.08968496,0.00043636,120]
[400397069,1767510439273,500.0,0.00043636,120]
[400397070,1767510439524,427.23167631,0.00043636,120]
[400397071,1767510442069,248.91999201,0.00043636,120]
[400397072,1767510442456,500.0,0.00043636,120]
[400397073,1767510442690,285.86399918,0.00043636,120]
[400397074,1767510442967,236.45571002,0.00043636,120]
[400397075,1767510443086,500.0,0.00043636,120]
[400397076,1767510443346,390.71284367,0.00043636,120]
[400397077,1767510443910,640.95,0.00043636,120]
[400397078,1767510444151,640.95,0.00043636,120]
[400397079,1767510444227,500.0,0.00043636,120]
[400397080,1767510444305,152.76142344,0.00043636,120]
[400397081,1767510444379,640.95,0.00043636,120]
[400397082,1767510444451,500.0,0.00043636,120]
[400397083,1767510444525,500.0,0.00043636,120]
[400397084,1767510444617,640.95,0.00043636,120]
[400397085,1767510444693,500.0,0.00043636,120]
[400397086,1767510444767,279.89633778,0.00043636,120]
[400397087,1767510444866,640.95,0.00043636,120]
[400397088,1767510444945,500.0,0.00043636,120]
[400397089,1767510445139,640.95,0.00043636,120]
[400397090,1767510445225,500.0,0.00043636,120]
[400397091,1767510445375,640.95,0.00043636,120]
[400397092,1767510445450,500.0,0.00043636,120]
[400397093,1767510445608,640.95,0.00043636,120]
[400397094,1767510445684,364.12766243,0.00043636,120]
[400397095,1767510445852,640.95,0.00043636,120]
[400397096,1767510445996,359.94748233,0.00043636,120]
[400397097,1767510446104,640.95,0.00043636,120]
[400397098,1767510446176,209.63204909,0.00043636,120]
[400397099,1767510446349,640.95,0.00043636,120]
[400397100,1767510446577,640.95,0.00043636,120]
[400397101,1767510446895,194.13138278,0.00043636,120]
[400397102,1767510446969,640.95,0.00043636,120]
[400397103,1767510447122,-300.0,0.0002143,2]
[400397104,1767510447143,-289.1804665,0.00022998,2]
[400397105,1767510447165,-299.03039159,0.00022998,2]
[400397106,1767510447247,640.95,0.00043636,120]
[400397107,1767510447486,640.95,0.00043636,120]
[400397108,1767510447726,640.95,0.00043636,120]
[400397109,1767510447996,640.95,0.00043636,120]
[400397110,1767510448818,640.95,0.00043636,120]
[400397111,1767510449062,640.95,0.00043636,120]
[400397112,1767510449289,640.95,0.00043636,120]
[400397113,1767510449533,640.95,0.00043636,120]
[400397114,1767510449790,640.95,0.00043636,120]
[400397115,1767510450019,640.95,0.00043636,120]
[400397116,1767510450252,641.0249841,0.00043636,120]
[400397117,1767510451193,175.58595341,0.00043636,120]
[400397118,1767510451272,273.83689558,0.00043636,120]
[400397119,1767510452165,477.42290314,0.00043636,120]
[400397120,1767510454724,500.0,0.00043636,120]
[400397121,1767510454865,289.48133835,0.00043636,120]
[400397122,1767510454946,500.0,0.00043636,120]
[400397123,1767510455029,164.367248,0.00043636,65]
[400397124,1767510455179,365.11707447,0.00043636,120]
[400397125,1767510455418,343.98393916,0.00043636,120]
[400397126,1767510457069,627.3149198,0.00043636,120]
[400397127,1767510458421,165.8397945,0.00043636,120]
[400397128,1767510459867,878.02,0.00043636,120]
[400397129,1767510460097,878.02,0.00043636,120]
[400397130,1767510460357,878.02,0.00043636,120]
[400397131,1767510460598,878.02,0.00043636,120]
[400397132,1767510460849,878.02,0.00043636,120]
[400397133,1767510460921,805.02,0.00043636,120]
[400397134,1767510461120,805.02,0.00043636,120]
[400397135,1767510461193,878.02,0.00043636,120]
[400397136,1767510461369,805.02,0.00043636,120]
[400397137,1767510461443,878.02,0.00043636,120]
[400397138,1767510461588,805.02,0.00043636,120]
[400397139,1767510461658,878.02,0.00043636,120]
[400397140,1767510461805,805.02,0.00043636,120]
[400397141,1767510461871,878.02,0.00043636,120]
[400397142,1767510462078,805.02,0.00043636,120]
[400397143,1767510462148,878.02,0.00043636,120]
[400397144,1767510462302,805.02,0.00043636,120]
[400397145,1767510462372,878.02,0.00043636,120]
[400397146,1767510462526,805.02,0.00043636,120]
[400397147,1767510462597,878.02,0.00043636,120]
[400397148,1767510462752,805.02,0.00043636,120]
[400397149,1767510462825,878.02,0.00043636,120]
[400397150,1767510462905,292.47539509,0.00043636,120]
[400397151,1767510462974,805.02,0.00043636,120]
[400397152,1767510463072,878.02,0.00043636,120]
[400397153,1767510463191,805.02,0.00043636,120]
[400397154,1767510463294,878.02,0.00043636,120]
[400397155,1767510463441,805.02,0.00043636,120]
[400397156,1767510463563,878.02,0.00043636,120]
[400397157,1767510463692,805.02,0.00043636,120]
[400397158,1767510463790,878.02,0.00043636,120]
[400397159,1767510463920,805.02,0.00043636,120]
[400397160,1767510464041,878.02,0.00043636,120]
[400397161,1767510464169,805.02,0.00043636,120]
[400397162,1767510464275,878.02,0.00043636,120]
[400397163,1767510464345,327.80912427,0.00043636,120]
[400397164,1767510464413,500.0,0.00043636,120]
[400397165,1767510464481,805.02,0.00043636,120]
[400397166,1767510464553,878.02,0.00043636,120]
[400397167,1767510464622,232.49474314,0.00043636,120]
[400397168,1767510464689,805.02,0.00043636,120]
[400397169,1767510464755,878.02,0.00043636,120]
[400397170,1767510464843,298.46867093,0.00043636,120]
[400397171,1767510464913,805.02,0.00043636,120]
[400397172,1767510464986,407.4670854,0.00043636,120]
[400397173,1767510465064,878.02,0.00043636,120]
[400397174,1767510465142,805.02,0.00043636,120]
[400397175,1767510465243,878.02,0.00043636,120]
[400397176,1767510465342,805.02,0.00043636,120]
[400397177,1767510465480,878.07112472,0.00043636,120]
[400397178,1767510465588,300.0,0.00043636,30]
[400397179,1767510465669,805.02,0.00043636,120]
[400397180,1767510465887,805.02,0.00043636,120]
[400397181,1767510466119,805.02,0.00043636,120]
[400397182,1767510466347,805.20615026,0.00043636,120]
[400397183,1767510466487,323.41316228,0.00043636,120]
[400397184,1767510466848,300.0,0.00043636,30]
[400397185,1767510467521,500.0,0.00043636,120]
[400397186,1767510467768,438.73314975,0.00043636,120]
[400397187,1767510468191,300.0,0.00043636,30]
[400397188,1767510468677,643.47920804,0.00043636,120]
[400397189,1767510469333,300.0,0.00043636,30]
[400397190,1767510470677,300.0,0.00043636,30]
[400397191,1767510471404,500.0,0.00043636,120]
[400397192,1767510471663,500.0,0.00043636,120]
[400397193,1767510471733,500.0,0.00043636,120]
[400397194,1767510471897,300.0,0.00043636,30]
[400397195,1767510472111,419.71676627,0.00043636,120]
[400397196,1767510472276,500.0,0.00043636,120]
[400397197,1767510472556,500.0,0.00043636,120]
[400397198,1767510472791,544.74761345,0.00043636,120]
[400397199,1767510472862,500.0,0.00043636,120]
[400397200,1767510473121,500.0,0.00043636,120]
[400397201,1767510473210,300.0,0.00043636,30]
[400397202,1767510473372,279.12620391,0.00043636,120]
[400397203,1767510473462,197.84488785,0.00043636,120]
[400397204,1767510474400,300.0,0.00043636,30]
[400397205,1767510475254,194.21095555,0.00043636,120]
[400397206,1767510475637,300.0,0.00043636,30]
[400397207,1767510476894,300.0,0.00043636,30]
[400397208,1767510478496,300.0,0.00043636,30]
[400397209,1767510478571,531.85326143,0.00043636,120]
[400397210,1767510479604,300.0,0.00043636,30]
[400397211,1767510480679,302.28353432,0.00043636,120]
[400397212,1767510480808,304.33586061,0.00043636,30]
[400397213,1767510482547,500.0,0.00043636,120]
[400397214,1767510482768,197.05719919,0.00043636,120]
[400397216,1767510483375,158.07492217,0.00043636,120]
[400397219,1767510483672,500.0,0.00043636,120]
[400397220,1767510483915,467.14211842,0.00043636,120]
[400397221,1767510486569,189.7266176,0.00043636,120]
[400397222,1767510487924,500.0,0.00043636,120]
[400397223,1767510488290,500.0,0.00043636,120]
[400397224,1767510488393,186.04905282,0.00043636,120]
[400397225,1767510488676,609.61911852,0.00043636,120]
[400397226,1767510488754,500.0,0.00043636,120]
[400397227,1767510489214,500.0,0.00043636,120]
[400397228,1767510489445,528.08422832,0.00043636,120]
[400397229,1767510489606,283.98975794,0.00043636,120]
[400397230,1767510490487,564.07771841,0.00043636,120]
[400397231,1767510491502,226.63571431,0.00043636,120]
[400397232,1767510493731,571.47,0.00043636,120]
[400397233,1767510493976,571.47,0.00043636,120]
[400397234,1767510494232,571.47,0.00043636,120]
[400397235,1767510494480,306.16749256,0.00043636,120]
[400397236,1767510494556,571.47,0.00043636,120]
[400397237,1767510494720,571.47,0.00043636,120]
[400397238,1767510494956,571.47,0.00043636,120]
[400397239,1767510495100,500.0,0.00043636,120]
[400397240,1767510495192,571.47,0.00043636,120]
[400397241,1767510495556,158.251391,0.00043636,120]
[400397242,1767510495636,571.47,0.00043636,120]
[400397243,1767510495727,159.45704883,0.00043636,120]
[400397244,1767510495807,571.47,0.00043636,120]
[400397245,1767510495923,571.47,0.00043636,120]
[400397246,1767510496160,571.47,0.00043636,120]
[400397247,1767510496335,500.0,0.00043636,120]
[400397248,1767510496424,571.47,0.00043636,120]
[400397249,1767510496558,500.0,0.00043636,120]
[400397250,1767510496637,571.47,0.00043636,120]
[400397251,1767510496832,500.0,0.00043636,120]
[400397252,1767510496909,571.47,0.00043636,120]
[400397253,1767510497071,500.0,0.00043636,120]
[400397254,1767510497147,571.47,0.00043636,120]
[400397255,1767510497318,500.0,0.00043636,120]
[400397256,1767510497394,571.47,0.00043636,120]
[400397257,1767510497558,500.0,0.00043636,120]
[400397258,1767510497635,571.47,0.00043636,120]
[400397259,1767510497790,500.0,0.00043636,120]
[400397260,1767510497868,571.47,0.00043636,120]
[400397261,1767510498041,500.0,0.00043636,120]
[400397262,1767510498114,571.47,0.00043636,120]
[400397263,1767510498279,500.0,0.00043636,120]
[400397264,1767510498344,571.47,0.00043636,120]
[400397265,1767510498525,571.47,0.00043636,120]
[400397266,1767510498690,500.0,0.00043636,120]
[400397267,1767510498784,500.0,0.00043636,120]
[400397268,1767510498863,571.47,0.00043636,120]
[400397269,1767510499048,500.0,0.00043636,120]
[400397270,1767510499128,571.47,0.00043636,120]
[400397271,1767510499265,500.0,0.00043636,120]
[400397272,1767510499334,571.69007012,0.00043636,120]
[400397273,1767510499502,500.0,0.00043636,120]
[400397274,1767510499746,500.0,0.00043636,120]
[400397275,1767510499985,500.0,0.00043636,120]
[400397276,1767510500281,166.07040636,0.00043636,120]
[400397277,1767510500514,275.96174157,0.00043636,120]
[400397278,1767510501773,239.80253491,0.00043636,120]
[400397279,1767510503961,388.06644374,0.00043636,120]
[400397280,1767510504518,184.41369361,0.00043636,120]
[400397281,1767510504753,196.97728907,0.00043636,120]
[400397282,1767510505535,243.87988594,0.00043636,120]
[400397283,1767510506329,228.84593131,0.00043636,120]
[400397284,1767510506637,307.5070758,0.00043636,120]
[400397285,1767510508528,248.78799308,0.00043636,120]
[400397286,1767510508600,196.84866069,0.00043636,120]
[400397287,1767510508674,571.86231872,0.00043636,120]
[400397288,1767510510597,191.12328627,0.00043636,120]
[400397289,1767510511024,619.23190197,0.00043636,120]
[400397290,1767510513423,500.0,0.00043636,120]
[400397291,1767510513845,285.19972578,0.00043636,120]
[400397292,1767510513929,449.08,0.00043636,120]
[400397293,1767510515622,152.93340916,0.00043636,120]
[400397294,1767510515883,172.84930588,0.00043636,120]
[400397295,1767510516046,151.0,0.00043636,65]
[400397296,1767510516340,151.0,0.00043636,65]
[400397297,1767510516638,151.0,0.00043636,65]
[400397298,1767510516977,151.0,0.00043636,65]
[400397299,1767510517038,352.6834915,0.00043636,120]
[400397300,1767510517256,151.0,0.00043636,65]
[400397301,1767510517554,151.0,0.00043636,65]
[400397302,1767510517975,151.0,0.00043636,65]
[400397303,1767510518206,500.0,0.00043636,120]
[400397304,1767510518271,151.0,0.00043636,65]
[400397305,1767510518447,420.00223302,0.00043636,120]
[400397306,1767510518641,151.0,0.00043636,65]
[400397307,1767510519004,151.0,0.00043636,65]
[400397308,1767510519071,192.4161515,0.00043636,120]
[400397309,1767510519194,151.0,0.00043636,65]
[400397310,1767510519261,500.0,0.00043636,120]
[400397311,1767510519506,558.69147729,0.00043636,120]
[400397312,1767510519580,151.0,0.00043636,65]
[400397313,1767510519661,156.77688538,0.00043636,120]
[400397314,1767510520973,691.02,0.00043636,120]
[400397315,1767510521227,691.02,0.00043636,120]
[400397316,1767510521489,691.02,0.00043636,120]
[400397317,1767510521569,500.0,0.00043636,120]
[400397318,1767510521728,691.02,0.00043636,120]
[400397319,1767510521808,500.0,0.00043636,120]
[400397320,1767510521961,338.15757261,0.00043636,120]
[400397321,1767510522027,691.02,0.00043636,120]
[400397322,1767510522087,500.0,0.00043636,120]
[400397323,1767510522175,300.425715,0.00043636,65]
[400397324,1767510522234,691.02,0.00043636,120]
[400397325,1767510522301,500.0,0.00043636,120]
[400397326,1767510522461,691.02,0.00043636,120]
[400397327,1767510522565,500.0,0.00043636,120]
[400397328,1767510522720,691.02,0.00043636,120]
[400397329,1767510522831,500.0,0.00043636,120]
[400397330,1767510522953,691.02,0.00043636,120]
[400397331,1767510523076,500.0,0.00043636,120]
[400397332,1767510523232,691.02,0.00043636,120]
[400397333,1767510523308,500.0,0.00043636,120]
[400397334,1767510523525,691.02,0.00043636,120]
[400397335,1767510523588,500.0,0.00043636,120]
[400397336,1767510523746,691.02,0.00043636,120]
[400397337,1767510523809,500.0,0.00043636,120]
[400397338,1767510523994,691.02,0.00043636,120]
[400397339,1767510524063,237.53087027,0.00043636,120]
[400397340,1767510524131,500.0,0.00043636,120]
[400397341,1767510524235,691.02,0.00043636,120]
[400397342,1767510524303,500.0,0.00043636,120]
[400397343,1767510524472,691.02,0.00043636,120]
[400397344,1767510524543,500.0,0.00043636,120]
[400397345,1767510524706,691.02,0.00043636,120]
[400397346,1767510524794,500.0,0.00043636,120]
[400397347,1767510524973,500.0,0.00043636,120]
[400397348,1767510525059,691.02,0.00043636,120]
[400397349,1767510525199,500.0,0.00043636,120]
[400397350,1767510525274,691.02,0.00043636,120]
[400397351,1767510525421,500.0,0.00043636,120]
[400397352,1767510525495,691.02,0.00043636,120]
[400397353,1767510525698,691.02,0.00043636,120]
[400397354,1767510525769,500.0,0.00043636,120]
[400397355,1767510525906,691.02,0.00043636,120]
[400397356,1767510525981,500.0,0.00043636,120]
[400397357,1767510526144,691.02,0.00043636,120]
[400397358,1767510526209,628.94561891,0.00043636,120]
[400397359,1767510526387,691.02,0.00043636,120]
[400397360,1767510526613,691.16297484,0.00043636,120]
[400397361,1767510526674,157.15557168,0.00043636,120]
[400397362,1767510527402,500.0,0.00043636,120]
[400397363,1767510528039,252.45810249,0.00043636,120]
[400397364,1767510528931,549.07660459,0.00043636,120]
[400397365,1767510529408,171.45122152,0.00043636,120]
[400397366,1767510530117,258.89295456,0.00043636,120]
[400397367,1767510530415,576.82605083,0.00043636,120]
[400397368,1767510531299,164.50658488,0.00043636,120]
[400397369,1767510533092,222.6996037,0.00043636,120]
[400397370,1767510533226,168.64787668,0.00043636,120]
[400397371,1767510534113,308.76937564,0.00043636,120]
[400397372,1767510534890,252.80413303,0.00043636,120]
[400397373,1767510537022,175.58226221,0.00043636,120]
[400397374,1767510537996,555.84440197,0.00043636,120]
[400397375,1767510538093,323.6578569,0.00043636,120]
[400397376,1767510539582,198.47408101,0.00043636,120]
[400397377,1767510539855,623.08263099,0.00043636,120]
[400397378,1767510540128,154.78727849,0.00043636,120]
[400397379,1767510540223,360.24589716,0.00043636,120]
[400397380,1767510541373,500.0,0.00043636,120]
[400397381,1767510541607,191.96974156,0.00043636,120]
[400397382,1767510542516,279.22270023,0.00043636,120]
[400397383,1767510543988,500.0,0.00043636,120]
[400397384,1767510544234,334.84361805,0.00043636,120]
[400397385,1767510544909,194.32705971,0.00043636,120]
[400397386,1767510545913,227.11212448,0.00043636,120]
[400397387,1767510545983,215.27957281,0.00043636,120]
[400397388,1767510546554,500.0,0.00043636,120]
[400397389,1767510546812,500.0,0.00043636,120]
[400397390,1767510546884,500.0,0.00043636,120]
[400397391,1767510547047,500.0,0.00043636,120]
[400397392,1767510547119,500.0,0.00043636,120]
[400397393,1767510547303,500.0,0.00043636,120]
[400397394,1767510547386,500.0,0.00043636,120]
[400397395,1767510547538,338.27996725,0.00043636,120]
[400397396,1767510547614,532.90864369,0.00043636,120]
[400397397,1767510548122,182.46475613,0.00043636,120]
[400397399,1767510549976,227.13103318,0.00043636,120]
[400397400,1767510551378,500.0,0.00043636,120]
[400397401,1767510551647,500.0,0.00043636,120]
[400397402,1767510551887,500.0,0.00043636,120]
[400397403,1767510551946,177.40751711,0.00043636,120]
[400397404,1767510552170,500.0,0.00043636,120]
[400397405,1767510552405,500.0,0.00043636,120]
[400397406,1767510552996,500.0,0.00043636,120]
[400397407,1767510553062,253.19180875,0.00043636,120]
[400397408,1767510553733,258.8878989,0.00043636,120]
[400397409,1767510556603,255.16980881,0.00043636,120]
[400397410,1767510557096,-0.96960841,0.00022998,2]
[400397411,1767510557117,-226.97311419,0.00023217,2]
[400397412,1767510557144,-195.0,0.00023217,2]
[400397413,1767510557166,-300.0,0.00023436,2]
[400397414,1767510557186,-360.50798662,0.00023436,2]
[400397415,1767510560698,202.0356638,0.00043636,120]
[400397416,1767510562083,201.68286819,0.00043636,120]
[400397417,1767510562776,150.95041547,0.00043636,120]
[400397418,1767510563275,500.0,0.00043636,120]
[400397419,1767510563534,500.0,0.00043636,120]
[400397420,1767510563769,500.0,0.00043636,120]
[400397421,1767510564014,500.0,0.00043636,120]
[400397422,1767510564257,500.0,0.00043636,120]
[400397423,1767510564674,500.0,0.00043636,120]
[400397424,1767510564816,160.859546,0.00043636,65]
[400397425,1767510564900,500.0,0.00043636,120]
[400397426,1767510565140,500.0,0.00043636,120]
[400397428,1767510565370,500.0,0.00043636,120]
[400397429,1767510565605,500.0,0.00043636,120]
[400397430,1767510565789,320.76890825,0.00043636,120]
[400397431,1767510565852,562.96939074,0.00043636,120]
[400397432,1767510567015,225.16697821,0.00043636,120]
[400397433,1767510567680,500.0,0.00043636,120]
[400397434,1767510568307,500.0,0.00043636,120]
[400397435,1767510568583,500.0,0.00043636,120]
[400397436,1767510568794,500.0,0.00043636,120]
[400397437,1767510569051,500.0,0.00043636,120]
[400397438,1767510569277,500.0,0.00043636,120]
[400397439,1767510569511,500.0,0.00043636,120]
[400397440,1767510569745,500.0,0.00043636,120]
[400397441,1767510569999,500.0,0.00043636,120]
[400397442,1767510570239,238.79862091,0.00043636,120]
[400397443,1767510570305,885.9,0.00043636,30]
[400397444,1767510570441,197.69554899,0.00043636,120]
[400397445,1767510570850,207.59811394,0.00043636,120]
[400397446,1767510572647,419.61764009,0.00043636,120]
[400397447,1767510573350,151.64449889,0.00043636,120]
[400397448,1767510574668,164.54223305,0.00043636,120]
[400397449,1767510574984,175.49450296,0.00043636,120]
[400397450,1767510577259,173.23839103,0.00043636,120]
[400397451,1767510577877,358.68588594,0.00043636,120]
[400397452,1767510580059,257.28247782,0.00043636,120]
[400397453,1767510580675,500.0,0.00043636,120]